Cogmind - Beta 10 @@@ ROGUE MODE // 2020.09.09 @ 19:25:43 Player: MTF Result: Destroyed by D-53 Grenadier with Mini Grenade Launcher Performance ------------- Evolutions (1) 500 Regions Visited (4) 800 Robots Destroyed (60) 300 Value Destroyed (844) 844 Prototype IDs (7) 140 Alien Tech Used (0) 0 Bonus (-124) -124 TOTAL SCORE: 2460 Bonus ------- Friendly Fire -124 Cogmind --------- Core Integrity 0/400 Matter 68/300 Energy 105/125 System Corruption 1% Temperature Cool (0) Movement Walking (240) Ox4 Location -9/Mines Parts ------- > --- POWER (1) -------- Light Ion Engine > --- PROPULSION (2) --- Aluminum Leg Aluminum Leg > --- UTILITY (4) ------ Large Storage Unit High-capacity Storage Unit High-capacity Storage Unit > --- WEAPON (2) ------- Assault Rifle > --- INVENTORY (26) --- Large Storage Unit Improved Sensor Array Signal Interpreter Particle Cannon Assault Rifle Assault Rifle Assault Rifle Assault Rifle Assault Rifle Assault Rifle Assault Rifle Assault Rifle Shotgun Grenade Launcher Mini Grenade Launcher Mini Grenade Launcher Peak State ------------ > --- POWER ------------ Improved Ion Engine > --- PROPULSION ------- Aluminum Leg Aluminum Leg > --- UTILITY ---------- Large Storage Unit High-capacity Storage Unit High-capacity Storage Unit Light Armor Plating > --- WEAPON ----------- Assault Rifle Mini Grenade Launcher > --- INVENTORY -------- Light Ion Engine Wheel Wheel Large Storage Unit Improved Sensor Array Signal Interpreter Particle Cannon Assault Rifle Assault Rifle Assault Rifle Assault Rifle Assault Rifle Assault Rifle Assault Rifle Assault Rifle Assault Rifle Shotgun Grenade Launcher Mini Grenade Launcher Mini Grenade Launcher Mini Grenade Launcher [Rating: 13] Favorites ----------- Power Ion Engine Engine Ion Engine Propulsion Aluminum Leg Treads Light Treads Leg Aluminum Leg Wheel Wheel Utility High-capacity Storage Unit Storage High-capacity Storage Unit Protection Light Armor Plating Weapon Shotgun Ballistic Gun Shotgun Launcher Mini Grenade Launcher Build | -11 -10 -10 -9 -9 ------- Run | Scr Mat Min Mat Min Slots Evolved 2 | . . . 2 . Power . | . . . . . Propulsion . | . . . . . Utility 2 | . . . 2 . Weapon . | . . . . . Parts Attached 38 | 1 16 4 8 9 Power 4 | . 1 . 2 1 Engine 4 | . 1 . 2 1 Core . | . . . . . Reactor . | . . . . . Propulsion 11 | . 5 2 . 4 Treads 3 | . 3 . . . Leg 5 | . 2 1 . 2 Wheel 3 | . . 1 . 2 Hover . | . . . . . Flight . | . . . . . Utility 5 | 1 2 . 2 . Device . | . . . . . Storage 4 | 1 2 . 1 . Processor . | . . . . . Hackware . | . . . . . Protection 1 | . . . 1 . Artifact . | . . . . . Weapon 18 | . 8 2 4 4 Energy Gun . | . . . . . Energy Cannon . | . . . . . Ballistic Gun 11 | . 7 1 2 1 Ballistic Cannon . | . . . . . Launcher 7 | . 1 1 2 3 Special Weapon . | . . . . . Impact Weapon . | . . . . . Slashing Weapon . | . . . . . Piercing Weapon . | . . . . . Special Melee Weapon . | . . . . . Unidentified Prototypes . | . . . . . Parts Lost 14 | . 3 1 2 8 Power 3 | . 1 . 1 1 Propulsion 6 | . 1 1 . 4 Utility 1 | . . . 1 . Weapon 4 | . 1 . . 3 Highest Loss Streak 8 | . 3 1 1 8 Average Slot Usage (%) 96 | . 99 100 90 61 Engine 13 | . 13 14 10 11 Treads 4 | . 5 . . . Leg 21 | . 21 26 22 4 Storage 27 | . 28 28 26 33 Protection 1 | . . . 8 . Ballistic Gun 25 | . 27 27 21 1 Naked Turns . | . . . . . Heaviest Build 94 | 13 75 73 94 91 Greatest Support 40 | 20 40 20 20 20 Greatest Overweight (x) 27 | . 3 7 4 27 Average Overweight (x) 2 | . 2 3 3 8 Largest Inventory Capacity 26 | 8 20 20 26 26 Average Capacity 19 | 6 19 20 22 26 Most Carried 21 | 6 20 20 21 21 Average Carried 16 | 6 15 19 19 17 Final Capacity 26 | 8 20 20 26 26 Final Carried 21 | 6 20 20 21 16 Class Distribution -------------------- 93% | Hauler-Mutant 6% | Mutant Dominant Class ---------------- Hauler-Mutant | -10/Materials Hauler-Mutant | -10/Mines Hauler-Mutant | -9/Materials Hauler-Mutant | -9/Mines Resources | -11 -10 -10 -9 -9 ----------- Run | Scr Mat Min Mat Min Matter Collected 963 | 224 432 69 200 38 Remotely . | . . . . . Salvage Created 1458 | 86 825 69 385 93 Parts 81 | 3 45 2 30 1 Haulers Intercepted 2 | . 2 . . . Recyclers Shooed 4 | . 3 . 1 . Parts Field Recycled . | . . . . . Retrieved Matter . | . . . . . Parts Self-Destructed . | . . . . . Prevented . | . . . . . Kills | -11 -10 -10 -9 -9 ------- Run | Scr Mat Min Mat Min Combat Hostiles Destroyed 38 | . 11 2 7 18 Guns 16 | . 11 1 4 . AOE 22 | . . 1 3 18 Classes Destroyed 13 | 1 6 . 5 1 Worker 7 | . 3 . 4 . Builder 2 | . . . 2 . Hauler 2 | . 2 . . . Recycler 4 | 1 3 . . . Mechanic 1 | . . . 1 . Operator 1 | . 1 . . . Watcher 4 | . 3 . 1 . Swarmer 3 | . 3 . . . Grunt 15 | . 8 2 4 1 Brawler 1 | . . . 1 . Duelist 1 | . . . 1 . Sentry 1 | . . . 1 . Assembled 18 | . . . . 18 Best Kill Streak 18 | 1 5 2 10 18 Combat Bots Only 18 | . 4 2 3 18 Max Kills in Single Turn 5 | 1 1 1 5 5 Gunslinging . | . . . . . Exploded 4 | . . 1 1 4 Melee . | . . . . . Uniques/NPCs Destroyed . | . . . . . Combat | -11 -10 -10 -9 -9 -------- Run | Scr Mat Min Mat Min Damage Taken 2280 | . 823 158 536 763 Core 597 | . 139 43 99 316 Absorbed by Shields . | . . . . . Core Remaining (%) 63 | 100 . 27 . . Volleys Fired 134 | 7 79 6 34 8 Largest 2 | 2 2 2 2 1 Hottest 46 | 40 46 40 40 30 Shots Fired 248 | 14 154 11 61 8 Gun 231 | 14 153 10 54 . Cannon . | . . . . . Launcher 17 | . 1 1 7 8 Special . | . . . . . Kinetic 231 | 14 153 10 54 . Thermal . | . . . . . Explosive 17 | . 1 1 7 8 Electromagnetic . | . . . . . Robot Hit Streak 13 | 5 9 7 13 1 Robot Miss Streak 6 | 5 6 1 3 3 Penetration Max . | . . . . . Secondary Targets 1 | . 1 . . . Max Gunslinging Chain 1 | . 1 . . . Shots Hit Robots 171 | 7 111 8 43 2 Core Hits 121 | 2 49 4 26 40 Critical Hits 5 | . 4 . 1 . Critical Kills . | . . . . . Critical Parts Destroyed 5 | . 4 . 1 . Melee Attacks . | . . . . . Impact . | . . . . . Slashing . | . . . . . Piercing . | . . . . . Sneak Attacks . | . . . . . Combat Hostiles . | . . . . . Follow-up Attacks . | . . . . . Damage Inflicted 3845 | 63 1111 165 1305 1201 Guns 1783 | 63 1097 92 531 . Cannons . | . . . . . Explosions 2048 | . . 73 774 1201 Melee . | . . . . . Ramming 14 | . 14 . . . Kinetic 1783 | 63 1097 92 531 . Thermal . | . . . . . Explosive 2048 | . . 73 774 1201 Electromagnetic . | . . . . . Impact . | . . . . . Slashing . | . . . . . Piercing . | . . . . . Highest Corruption 1 | . . . . 1 Average Corruption 1 | . . . . 1 Corruption Purged . | . . . . . Effects 1 | . . . . 1 Energy Discharges 1 | . . . . 1 Overload Shots . | . . . . . Overflow Damage 72 | . . . 23 49 Projectiles . | . . . . . Explosions 72 | . . . 23 49 Melee . | . . . . . Knockbacks . | . . . . . Impact . | . . . . . Kinetic . | . . . . . Secondary . | . . . . . Self-Inflicted Damage 238 | . . 32 63 143 Shots 7 | . . 1 2 4 Rammed 4 | . 4 . . . Targets Rammed 4 | . 4 . . . Kicked . | . . . . . Crushed . | . . . . . Highest Temperature 24 | . 24 4 3 13 Average Temperature 7 | . 8 2 2 9 Received Heat Transfer 746 | . 417 60 243 26 Siege Activations . | . . . . . Robots Corrupted . | . . . . . Combat Hostiles . | . . . . . Parts Fried . | . . . . . Impact Corruptions . | . . . . . Robots Melted . | . . . . . Combat Hostiles . | . . . . . Parts Melted . | . . . . . Heat Transferred . | . . . . . Parts Sabotaged . | . . . . . Parts Stolen . | . . . . . Parts Stripped . | . . . . . Power Chain Reactions . | . . . . . Missiles Intercepted . | . . . . . Alert | -11 -10 -10 -9 -9 ------- Run | Scr Mat Min Mat Min Peak Influence 224 | 5 224 40 177 25 Initial 25 | . 3 . 15 25 Average 45 | 3 48 36 47 4 Maximum Alert Level 1 | . 1 . . . Low Security (%) 98 | 100 97 100 100 100 Level 1 1 | . 2 . . . Level 2 . | . . . . . Level 3 . | . . . . . Level 4 . | . . . . . Level 5 . | . . . . . High Security . | . . . . . Max Security . | . . . . . Squads Dispatched 1 | . 1 . . . Investigation 1 | . 1 . . . Extermination . | . . . . . Reinforcement . | . . . . . Assault . | . . . . . Garrison . | . . . . . Intercept . | . . . . . Construction Impeded . | . . . . . Haulers Reinforced . | . . . . . Stealth | -11 -10 -10 -9 -9 --------- Run | Scr Mat Min Mat Min Distress Signals 4 | . 1 . 3 . Communications Jammed . | . . . . . Distress Signals . | . . . . . Times Spotted 60 | . 20 5 13 22 Peak Tracking Total 13 | . 4 2 5 13 Tactical Retreats 1 | . 1 . . . Traps | -11 -10 -10 -9 -9 ------- Run | Scr Mat Min Mat Min Traps Triggered . | . . . . . Indirectly . | . . . . . Trap Hack Attempts . | . . . . . Triggered . | . . . . . Disarmed . | . . . . . Reprogrammed . | . . . . . Reused . | . . . . . Traps Extracted . | . . . . . Installed . | . . . . . Triggered . | . . . . . Machines | -11 -10 -10 -9 -9 ---------- Run | Scr Mat Min Mat Min Machines Disabled 2 | . . . 2 . Max in Single Turn 1 | . . . 1 . Machines Sabotaged . | . . . . . Garrisons Compromised . | . . . . . Overloaded Fab Kills . | . . . . . Fab Network Shutdowns . | . . . . . Hacking | -11 -10 -10 -9 -9 --------- Run | Scr Mat Min Mat Min Machines Accessed 13 | . 9 . 4 . Terminals 12 | . 8 . 4 . Fabricators . | . . . . . Repair Stations . | . . . . . Recycling Units 1 | . 1 . . . Scanalyzers . | . . . . . Garrison Access . | . . . . . Total Hacks 45 | . 31 . 14 . Successful 27 | . 19 . 8 . Failed 18 | . 12 . 6 . Catastrophic . | . . . . . Database Lockouts . | . . . . . Manual 25 | . 22 . 3 . Terminals 44 | . 30 . 14 . Fabricators . | . . . . . Repair Stations . | . . . . . Recycling Units 1 | . 1 . . . Scanalyzers . | . . . . . Garrison Access . | . . . . . Terminal Hacks 16 | . 9 . 7 . Part Schematic 2 | . 2 . . . Robot Analysis 2 | . 2 . . . Prototype ID Bank 5 | . 2 . 3 . Branch Access Points 1 | . . . 1 . Unreport Threat 2 | . . . 2 . Locate Traps 2 | . 1 . 1 . Recall Investigation 1 | . 1 . . . Hauler Manifests 1 | . 1 . . . Fabricator Hacks . | . . . . . Repair Station Hacks . | . . . . . Recycling Unit Hacks . | . . . . . Scanalyzer . | . . . . . Garrison Access Hacks . | . . . . . Unauthorized Hacks 11 | . 10 . 1 . Terminals 10 | . 9 . 1 . Track 5 | . 4 . 1 . Botnet 4 | . 4 . . . Operators 1 | . 1 . . . Fabricators . | . . . . . Repair Stations . | . . . . . Recycling Units 1 | . 1 . . . Tunnel 1 | . 1 . . . Scanalyzers . | . . . . . Garrison Access . | . . . . . Data Cores Recovered . | . . . . . Used . | . . . . . Hacking Detections 11 | . 7 . 4 . Full Trace Events . | . . . . . Feedback Events . | . . . . . Feedback Blocked . | . . . . . Robot Schematics Acquired . | . . . . . Robots Built . | . . . . . Matter . | . . . . . Time . | . . . . . Total Robot Build Rating . | . . . . . Part Schematics Acquired 2 | . 2 . . . Parts Built . | . . . . . Matter . | . . . . . Time . | . . . . . Total Part Build Rating . | . . . . . Parts Repaired . | . . . . . Time . | . . . . . Parts Recycled . | . . . . . Recycled Matter . | . . . . . Retrieved Matter . | . . . . . Retrieved Components . | . . . . . Parts Scanalyzed . | . . . . . Part Schematics Acquired . | . . . . . Parts Damaged . | . . . . . Bothacking | -11 -10 -10 -9 -9 ------------ Run | Scr Mat Min Mat Min Used RIF Installer . | . . . . . Robots Hacked . | . . . . . Non-combat . | . . . . . Combat . | . . . . . Robot Hacks Applied . | . . . . . Relay Couplers Released . | . . . . . Robots Rewired . | . . . . . Allies Hacked . | . . . . . Hacks Repelled . | . . . . . Allies | -11 -10 -10 -9 -9 -------- Run | Scr Mat Min Mat Min Total Allies 3 | . . . . 3 Largest Group 3 | . . . . 3 Highest-Rated Group 40 | . . . . 40 Highest-Rated Ally 16 | . . . . 16 Total Orders . | . . . . . Ally Attacks 4 | . . . . 4 Total Damage 26 | . . . . 26 Kills . | . . . . . Allies Corrupted . | . . . . . Allies Melted . | . . . . . Intel | -11 -10 -10 -9 -9 ------- Run | Scr Mat Min Mat Min Robot Analysis Total 2 | . 2 . . . Derelict Logs Recovered . | . . . . . Drone Launches . | . . . . . Drone Recoveries . | . . . . . Exploration | -11 -10 -10 -9 -9 ------------- Run | Scr Mat Min Mat Min Turns Passed 2456 | 43 1642 148 542 81 Spaces Moved 948 | 20 669 60 185 14 Core 2 | . . . . 2 Treads 103 | . 103 . . . Legs 836 | 20 566 58 185 7 Wheels 7 | . . 2 . 5 Hover . | . . . . . Flight . | . . . . . Fastest Speed 110 | 120 120 150 210 110 Average Speed 206 | 120 200 208 221 387 Slowest Speed 1400 | 120 220 210 240 1400 Overloaded Moves . | . . . . . Propulsion Burnouts . | . . . . . Robots Hopped . | . . . . . Cave-ins Triggered . | . . . . . Exploration Rate (%) 25 | 2 84 12 23 8 Regions Visited 4 Branch Regions 2 Pre-discovered Areas 1 | . 1 . . . Known Exits Taken 1 | . . . 1 . Unknown Exits Taken 3 | 1 1 1 . . Scrap Searched . | . . . . . Spaces Dug 25 | . 6 8 . 11 Terrain Destroyed 101 | . 6 8 33 54 Melee . | . . . . . Projectile . | . . . . . AOE 101 | . 6 8 33 54 Terrain Rammed . | . . . . . Walls Destroyed . | . . . . . Machines Disabled . | . . . . . Actions | -11 -10 -10 -9 -9 --------- Run | Scr Mat Min Mat Min Total 1223 | 27 838 72 255 31 Wait 48 | . 19 2 27 . Move 944 | 19 668 59 184 14 Hop . | . . . . . Pick Up 33 | . 31 . 2 . Fast Attach 10 | 1 5 1 1 2 Attach 13 | . 5 1 2 5 Detach 1 | . . 1 . . Swap 15 | . 6 2 5 2 Drop 21 | . 21 . . . Fire 134 | 7 79 6 34 8 Melee . | . . . . . Ram . | . . . . . Kick . | . . . . . Crush 4 | . 4 . . . Escape Stasis . | . . . . . Rewire . | . . . . . Trap . | . . . . . Miscellaneous . | . . . . . Route ------- -11/Scrapyard -10/Materials (discovered 3 exits: *Mat x2 / [*Min]) -10/Mines -9/Materials (discovered 4 exits: *Min x2 / Sto x2) -9/Mines History --------- Turn | Location | Event 1 | -11/Scrapyard | Discovered new exit (range 1) 44 | -11/Scrapyard | Entered Materials 448 | -10/Materials | Lost 3 parts (1p1n1w) 468 | -10/Materials | Core integrity fell below 50% 484 | -10/Materials | Build established: Hauler-Mutant 523 | -10/Materials | Discovered new exit (range 8) 1193 | -10/Materials | Discovered new exit (range 4) 1377 | -10/Materials | Discovered new exit (range 11) 1686 | -10/Materials | Entered Mines 1811 | -10/Mines | Discovered new exit (range 11) 1834 | -10/Mines | Entered Materials 1834 | -9/Materials | Evolved 2 slots: Utility x2 2038 | -9/Materials | Identified exit to Mines 2038 | -9/Materials | Identified exit to Storage 2376 | -9/Materials | Entered Mines 2377 | -9/Mines | Assembled infested the area 2392 | -9/Mines | Core integrity fell below 50% 2398 | -9/Mines | Assisted by bots powering up and referring to "LRC-V3" 2402 | -9/Mines | Core integrity fell below 20% 2431 | -9/Mines | Destroyed 18 combat bots 2438 | -9/Mines | Lost 8 parts (1p4n3w) 2457 | -9/Mines | Destroyed by D-53 Grenadier with Mini Grenade Launcher Last Messages --------------- 02405_ as-70703 destroyed. 02406_ The unstable cave ceiling collapses. 02407_ as-13202 destroyed. 02407_ Wheel destroyed. 02407_ Destroyed Wheel. 02407_ Mni. Grenade Launcher destroyed. 02407_ Destroyed Mni. Grenade Launcher. 02407_ as-36233 destroyed. 02410_ as-91824 destroyed. 02410_ as-96740 destroyed. 02412_ The unstable cave ceiling collapses. 02412_ Acquired 24 matter. 02422_ The unstable cave ceiling collapses. 02440_ Acquired Aluminum Leg. 02444_ The unstable cave ceiling collapses. 02445_ Acquired 13 matter. 02452_ Acquired Aluminum Leg. 02454_ Acquired 1 matter. 02455_ C-30 ARC bursts open, deploying its payload. 02455_ D-53 Grenadier unfolds itself. Map ----- +----------------------------------------------------+ | ??????????????????????????????????????????????? | | ??????????????????????????????????????????????? | | ??????????????????????????????????????????????? | | ??????????????????????????????????????????????? | | ??????????????????????????????????????????????? | | ??????????????????????????????????????????????? | | ??????????????????????????????????????????????? | | ??????????????????????????????????????????????? | | ??????????????????????????????????????????????? | | ??????????????????????????????????????????????? | | ??????????????????????????????????????????????? | | ??????????????????????????????????????????????? | | ??????????????????????????????????????????????? | | ??????????????????????????????????????????????? | | ??????????????????????????????????????????????? | | ??????????????????????????????????????????????? | | ??????????????????????????????????????????????? | | ??????????????????????????????????????????????? | | ??????????????????????????????????????????????? | | ??????????????????????????????????????????????? | | ????????????????????????????###?##????????????? | | ???????????????????????##### ## ###??????????? | | ???????????????????????##* #??????????? | | ??????????????????????## ##### #????? | | ??????????????????????##%[ d d % #????? | | ??????????????????????# !@ ## ####????? | | ??????????????????????## #??????????? | | ???????????????????????# # ##??????????? | | ?????????????????????? # # # #???????????? | | ????????????????????# # # #???????????? | | ????????????????????# #???????????? | | ???????????????????# ##???????????? | | ?????????????????? # #???????????? | | ?????????????????# # ##???????????? | | ?????????????????# ##### ##????????????? | | ?????????????????# < #????? ?????????????? | | ?????????????????## ?????? ????????????? | | ??????????????????## #??????# ????????????? | | ???????????????????###????????#?? ???????????? | | ??????????????????????????????????????????????? | | ??????????????????????????????????????????????? | | ??????????????????????????????????????????????? | | | | | | | | | | | | | | | | | +----------------------------------------------------+ Best States ------------- Heat Dissipation 28 Energy Generation 12 Energy Capacity 265 Matter Stores 300 Matter Capacity 300 Sight Range 16 Terrain Scan Density 10 Armor Coverage 150 Evasion (%) 40 Recoil Reduction 2 Item Schematics ----------------- Hcp. Storage Unit | -10/Materials | Hacked Med. Storage Unit | -10/Materials | Hacked Robot Schematics ------------------ None Fabricated ------------ Nothing Alien Tech Used ----------------- None Achievements -------------- None Challenges ------------ None Game ------ Seed DimensionalLongswordBoregun Manual? 0 Play Time 00:22:34 Cumulative 815.7 hours Start 2020.09.09 @ 18:45:12 End 2020.09.09 @ 19:25:43 Sessions 1 Manual Loads 0 Difficulty Rogue Special Mode None Game No. 310 Rogue 310 Adventurer 0 Explorer 0 Win Type - Total 41 Types 9/12/8/3/1/1/7/0/0 Lore% 94 Gallery% 93 Achievement% 83 Wizard Run 0 Options --------- ASCII 0 Keyboard 0 Movement Numpad Keybinds 0 Fullscreen 2 Font 24/Smallcaps Map View 76x50 Tactical HUD 1 Map Filters NONE Filters NONE Steam 1 RUN: c8a49664-0462-4ef3-9773-756b1fb96808